[Event "Titled Tuesday Blitz September 20 Late 2022"]
[White "Horobetz, Graham"]
[Black "Sjugirov, Sanan"]
[WhiteFideId "2047322"]
[BlackFideId "4189302"]
[WhiteElo "2609"]
[BlackElo "2609"]
[Result "0-1"]
[Round "02"]
[TimeControl "180+1"]
[Date "2022.09.20"]
[WhiteClock "0:00:02"]
[BlackClock "0:00:16"]

1. e4 {[%clk 0:03:00]}  c6 {[%clk 0:03:00]} 2. d4 {[%clk 0:03:00]}  d5 {[%clk 0:03:01]} 3. Nc3 {[%clk 0:03:00]}  dxe4 {[%clk 0:03:00]} 4. Nxe4 {[%clk 0:03:01]}  Nf6 {[%clk 0:03:01]} 5. Nxf6+ {[%clk 0:03:01]}  exf6 {[%clk 0:03:02]} 6. c3 {[%clk 0:03:02]}  Bd6 {[%clk 0:03:02]} 7. Bd3 {[%clk 0:03:02]}  O-O {[%clk 0:03:03]} 8. Qc2 {[%clk 0:03:03]}  Re8+ {[%clk 0:03:04]} 9. Ne2 {[%clk 0:03:03]}  h6 {[%clk 0:03:04]} 10. O-O {[%clk 0:03:03]}  Nd7 {[%clk 0:03:05]} 11. Bf4 {[%clk 0:03:01]}  Nf8 {[%clk 0:02:49]} 12. Bxd6 {[%clk 0:02:59]}  Qxd6 {[%clk 0:02:50]} 13. Ng3 {[%clk 0:02:56]}  Be6 {[%clk 0:02:41]} 14. f4 {[%clk 0:02:47]}  Rad8 {[%clk 0:02:38]} 15. f5 {[%clk 0:02:45]}  Bc8 {[%clk 0:02:35]} 16. Rae1 {[%clk 0:02:45]}  Rxe1 {[%clk 0:02:30]} 17. Rxe1 {[%clk 0:02:46]}  Qc7 {[%clk 0:02:28]} 18. Qe2 {[%clk 0:02:42]}  c5 {[%clk 0:02:24]} 19. dxc5 {[%clk 0:02:23]}  Qxc5+ {[%clk 0:02:18]} 20. Qe3 {[%clk 0:02:13]}  Qc7 {[%clk 0:01:55]} 21. Bc2 {[%clk 0:02:09]}  a5 {[%clk 0:01:29]} 22. Bb3 {[%clk 0:02:05]}  Nd7 {[%clk 0:01:08]} 23. Qe7 {[%clk 0:01:53]}  Qc5+ {[%clk 0:01:07]} 24. Re3 {[%clk 0:01:29]}  Qxe7 {[%clk 0:01:05]} 25. Rxe7 {[%clk 0:01:30]}  Ne5 {[%clk 0:01:06]} 26. Rc7 {[%clk 0:01:20]}  b5 {[%clk 0:00:59]} 27. a4 {[%clk 0:01:13]}  Bd7 {[%clk 0:00:55]} 28. axb5 {[%clk 0:01:07]}  Bxb5 {[%clk 0:00:56]} 29. Rc5 {[%clk 0:01:05]}  Rb8 {[%clk 0:00:55]} 30. Bc2 {[%clk 0:00:54]}  a4 {[%clk 0:00:47]} 31. b4 {[%clk 0:00:23]}  a3 {[%clk 0:00:32]} 32. Bb3 {[%clk 0:00:22]}  Ba4 {[%clk 0:00:24]} 33. Ba2 {[%clk 0:00:20]}  Rd8 {[%clk 0:00:25]} 34. Ra5 {[%clk 0:00:14]}  Rd1+ {[%clk 0:00:23]} 35. Kf2 {[%clk 0:00:14]}  Rd2+ {[%clk 0:00:23]} 36. Ke3 {[%clk 0:00:14]}  Rxa2 {[%clk 0:00:21]} 37. Rxa4 {[%clk 0:00:15]}  Rxg2 {[%clk 0:00:22]} 38. Kd4 {[%clk 0:00:12]}  a2 {[%clk 0:00:20]} 39. b5 {[%clk 0:00:12]}  Rxh2 {[%clk 0:00:19]} 40. c4 {[%clk 0:00:08]}  Rb2 {[%clk 0:00:19]} 41. Ne4 {[%clk 0:00:06]}  h5 {[%clk 0:00:19]} 42. Nc3 {[%clk 0:00:03]}  Rd2+ {[%clk 0:00:18]} 43. Kc5 {[%clk 0:00:02]}  Rc2 {[%clk 0:00:19]} 44. Ne4 {[%clk 0:00:02]}  Rxc4+ {[%clk 0:00:16]} 45. Rxc4 {[%clk 0:00:02]}  a1=Q {[%clk 0:00:16]} 0-1


[Site "https://www.chess.com"]

[Event "Titled Tuesday Blitz September 20 Late 2022"]
[White "Iliaguev, Nisim"]
[Black "Manukyan, Sargis A."]
[WhiteFideId "2817276"]
[BlackFideId "13303970"]
[WhiteElo "2107"]
[BlackElo "2187"]
[Result "1-0"]
[Round "02"]
[TimeControl "180+1"]
[Date "2022.09.20"]
[WhiteClock "0:01:28"]
[BlackClock "0:00:02"]

1. d4 {[%clk 0:03:00]}  Nf6 {[%clk 0:02:51]} 2. g3 {[%clk 0:03:01]}  c5 {[%clk 0:02:51]} 3. Nf3 {[%clk 0:03:01]}  cxd4 {[%clk 0:02:50]} 4. Nxd4 {[%clk 0:03:01]}  e5 {[%clk 0:02:50]} 5. Nb3 {[%clk 0:03:02]}  d5 {[%clk 0:02:50]} 6. Bg2 {[%clk 0:03:02]}  Nc6 {[%clk 0:02:49]} 7. O-O {[%clk 0:03:03]}  Be6 {[%clk 0:02:48]} 8. Bg5 {[%clk 0:03:03]}  Be7 {[%clk 0:02:46]} 9. Bxf6 {[%clk 0:03:03]}  gxf6 {[%clk 0:02:39]} 10. e3 {[%clk 0:03:02]}  Qd7 {[%clk 0:02:31]} 11. Nc3 {[%clk 0:03:02]}  Rd8 {[%clk 0:02:31]} 12. Qe2 {[%clk 0:03:01]}  h5 {[%clk 0:01:51]} 13. h4 {[%clk 0:02:59]}  Bb4 {[%clk 0:01:23]} 14. Rad1 {[%clk 0:02:56]}  Bxc3 {[%clk 0:01:08]} 15. bxc3 {[%clk 0:02:54]}  Bg4 {[%clk 0:01:08]} 16. f3 {[%clk 0:02:52]}  Be6 {[%clk 0:00:54]} 17. c4 {[%clk 0:02:51]}  Qc7 {[%clk 0:00:34]} 18. Nc5 {[%clk 0:02:50]}  d4 {[%clk 0:00:28]} 19. Nxe6 {[%clk 0:02:42]}  fxe6 {[%clk 0:00:29]} 20. f4 {[%clk 0:02:42]}  Qb6 {[%clk 0:00:07]} 21. fxe5 {[%clk 0:02:29]}  fxe5 {[%clk 0:00:04]} 22. Bf3 {[%clk 0:02:28]}  Kd7 {[%clk 0:00:03]} 23. exd4 {[%clk 0:02:17]}  exd4 {[%clk 0:00:04]} 24. Bxh5 {[%clk 0:02:13]}  d3+ {[%clk 0:00:03]} 25. Kh2 {[%clk 0:02:08]}  Kc7 {[%clk 0:00:02]} 26. Rxd3 {[%clk 0:02:07]}  Nd4 {[%clk 0:00:02]} 27. Qe5+ {[%clk 0:02:06]}  Kc8 {[%clk 0:00:01]} 28. c5 {[%clk 0:01:54]}  Qb4 {[%clk 0:00:01]} 29. Rf4 {[%clk 0:01:47]}  Qb2 {[%clk 0:00:01]} 30. Rdxd4 {[%clk 0:01:42]}  Qxc2+ {[%clk 0:00:02]} 31. Be2 {[%clk 0:01:38]}  Qc1 {[%clk 0:00:03]} 32. Qxe6+ {[%clk 0:01:36]}  Kb8 {[%clk 0:00:03]} 33. Qe5+ {[%clk 0:01:36]}  Ka8 {[%clk 0:00:03]} 34. Rxd8+ {[%clk 0:01:35]}  Rxd8 {[%clk 0:00:04]} 35. Rf1 {[%clk 0:01:33]}  Qd2 {[%clk 0:00:03]} 36. Rd1 {[%clk 0:01:30]}  Qa5 {[%clk 0:00:02]} 37. Rxd8+ {[%clk 0:01:29]}  Qxd8 {[%clk 0:00:03]} 38. Bf3 {[%clk 0:01:29]}  a6 {[%clk 0:00:02]} 39. Bg2 {[%clk 0:01:28]}  Qd2 {[%clk 0:00:02]} 40. Qd6 {[%clk 0:01:28]} 1-0


[Site "https://www.chess.com"]

[Event "Titled Tuesday Blitz September 20 Late 2022"]
[White "Kravtsiv, Martyn"]
[Black "Danielyan, Vahe"]
[WhiteFideId "14113147"]
[BlackFideId "13304828"]
[WhiteElo "2694"]
[BlackElo "2421"]
[Result "1-0"]
[Round "02"]
[TimeControl "180+1"]
[Date "2022.09.20"]
[WhiteClock "0:00:04"]
[BlackClock "0:00:01"]

1. e4 {[%clk 0:03:00]}  e5 {[%clk 0:02:56]} 2. Nf3 {[%clk 0:03:00]}  Nc6 {[%clk 0:02:57]} 3. Nc3 {[%clk 0:03:00]}  Nf6 {[%clk 0:02:53]} 4. a4 {[%clk 0:03:00]}  a6 {[%clk 0:02:52]} 5. d4 {[%clk 0:02:56]}  exd4 {[%clk 0:02:52]} 6. Nxd4 {[%clk 0:02:56]}  Bb4 {[%clk 0:02:50]} 7. Nxc6 {[%clk 0:02:55]}  bxc6 {[%clk 0:02:51]} 8. Bd3 {[%clk 0:02:55]}  d5 {[%clk 0:02:51]} 9. Bd2 {[%clk 0:02:54]}  O-O {[%clk 0:02:50]} 10. O-O {[%clk 0:02:54]}  Rb8 {[%clk 0:02:50]} 11. Re1 {[%clk 0:02:32]}  Re8 {[%clk 0:02:50]} 12. exd5 {[%clk 0:01:36]}  Rxe1+ {[%clk 0:02:48]} 13. Qxe1 {[%clk 0:01:35]}  cxd5 {[%clk 0:02:49]} 14. h3 {[%clk 0:01:32]}  c6 {[%clk 0:02:48]} 15. b3 {[%clk 0:01:25]}  h6 {[%clk 0:02:47]} 16. Ne2 {[%clk 0:01:22]}  Bd6 {[%clk 0:02:45]} 17. Nd4 {[%clk 0:01:16]}  Qc7 {[%clk 0:02:41]} 18. Nf5 {[%clk 0:01:01]}  Bxf5 {[%clk 0:02:40]} 19. Bxf5 {[%clk 0:01:02]}  Re8 {[%clk 0:02:40]} 20. Qf1 {[%clk 0:01:01]}  Bh2+ {[%clk 0:02:38]} 21. Kh1 {[%clk 0:01:01]}  Bf4 {[%clk 0:02:39]} 22. Bc3 {[%clk 0:00:52]}  Be5 {[%clk 0:02:38]} 23. Bxe5 {[%clk 0:00:48]}  Qxe5 {[%clk 0:02:39]} 24. Bd3 {[%clk 0:00:47]}  a5 {[%clk 0:02:37]} 25. Kg1 {[%clk 0:00:47]}  g5 {[%clk 0:02:26]} 26. Rd1 {[%clk 0:00:44]}  Kg7 {[%clk 0:02:25]} 27. g3 {[%clk 0:00:43]}  Qc3 {[%clk 0:02:21]} 28. Kh2 {[%clk 0:00:40]}  Nd7 {[%clk 0:02:13]} 29. Kh1 {[%clk 0:00:27]}  Nc5 {[%clk 0:02:03]} 30. Kg2 {[%clk 0:00:22]}  Re5 {[%clk 0:02:01]} 31. Kh2 {[%clk 0:00:14]}  h5 {[%clk 0:01:52]} 32. Kg2 {[%clk 0:00:13]}  Kh6 {[%clk 0:01:51]} 33. f4 {[%clk 0:00:13]}  Nxd3 {[%clk 0:01:35]} 34. fxe5 {[%clk 0:00:11]}  Qxc2+ {[%clk 0:01:35]} 35. Kg1 {[%clk 0:00:10]}  Qc5+ {[%clk 0:00:58]} 36. Kh2 {[%clk 0:00:10]}  Qc2+ {[%clk 0:00:58]} 37. Kg1 {[%clk 0:00:08]}  Nxe5 {[%clk 0:00:37]} 38. Qf6+ {[%clk 0:00:07]}  Ng6 {[%clk 0:00:38]} 39. Rf1 {[%clk 0:00:08]}  Qxb3 {[%clk 0:00:37]} 40. Kh2 {[%clk 0:00:06]}  h4 {[%clk 0:00:28]} 41. gxh4 {[%clk 0:00:05]}  gxh4 {[%clk 0:00:29]} 42. Rf3 {[%clk 0:00:05]}  Qc2+ {[%clk 0:00:25]} 43. Rf2 {[%clk 0:00:05]}  Qd3 {[%clk 0:00:24]} 44. Rf3 {[%clk 0:00:05]}  Qe2+ {[%clk 0:00:24]} 45. Rf2 {[%clk 0:00:05]}  Qe3 {[%clk 0:00:13]} 46. Rf3 {[%clk 0:00:04]}  Qe2+ {[%clk 0:00:11]} 47. Rf2 {[%clk 0:00:04]}  Qe5+ {[%clk 0:00:06]} 48. Qxe5 {[%clk 0:00:03]}  Nxe5 {[%clk 0:00:07]} 49. Rf5 {[%clk 0:00:03]}  Nc4 {[%clk 0:00:04]} 50. Rf6+ {[%clk 0:00:04]}  Kg5 {[%clk 0:00:04]} 51. Rxc6 {[%clk 0:00:04]}  Ne5 {[%clk 0:00:04]} 52. Rc5 {[%clk 0:00:05]}  Kf4 {[%clk 0:00:02]} 53. Rxd5 {[%clk 0:00:04]}  f5 {[%clk 0:00:01]} 54. Rxa5 {[%clk 0:00:04]}  Nf3+ {[%clk 0:00:02]} 55. Kg2 {[%clk 0:00:03]}  Nd4 {[%clk 0:00:01]} 56. Kf2 {[%clk 0:00:03]}  Ke4 {[%clk 0:00:01]} 57. Ra8 {[%clk 0:00:03]}  f4 {[%clk 0:00:02]} 58. a5 {[%clk 0:00:03]}  Nf5 {[%clk 0:00:01]} 59. Re8+ {[%clk 0:00:03]}  Kd5 {[%clk 0:00:01]} 60. a6 {[%clk 0:00:04]}  Nd6 {[%clk 0:00:01]} 61. a7 {[%clk 0:00:04]} 1-0


[Site "https://www.chess.com"]

[Event "Titled Tuesday Blitz September 20 Late 2022"]
[White "Martin Duque, Jesus"]
[Black "Donchenko, Alexander"]
[WhiteFideId "2208954"]
[BlackFideId "24603295"]
[WhiteElo "2258"]
[BlackElo "2572"]
[Result "0-1"]
[Round "02"]
[TimeControl "180+1"]
[Date "2022.09.20"]
[WhiteClock "0:00:03"]
[BlackClock "0:00:04"]

1. Nf3 {[%clk 0:02:59]}  Nf6 {[%clk 0:02:59]} 2. b3 {[%clk 0:02:59]}  g6 {[%clk 0:02:59]} 3. Bb2 {[%clk 0:03:00]}  Bg7 {[%clk 0:03:00]} 4. g3 {[%clk 0:03:01]}  b6 {[%clk 0:03:00]} 5. Bg2 {[%clk 0:03:01]}  Bb7 {[%clk 0:03:01]} 6. O-O {[%clk 0:03:02]}  O-O {[%clk 0:03:01]} 7. e3 {[%clk 0:03:03]}  c5 {[%clk 0:03:02]} 8. Qe2 {[%clk 0:03:04]}  d5 {[%clk 0:03:01]} 9. Rd1 {[%clk 0:03:04]}  Nc6 {[%clk 0:03:00]} 10. d4 {[%clk 0:03:02]}  cxd4 {[%clk 0:03:00]} 11. Nxd4 {[%clk 0:03:03]}  Nxd4 {[%clk 0:02:59]} 12. Bxd4 {[%clk 0:03:03]}  Qc7 {[%clk 0:02:52]} 13. Nc3 {[%clk 0:02:35]}  e5 {[%clk 0:02:41]} 14. Nb5 {[%clk 0:02:34]}  Qb8 {[%clk 0:02:25]} 15. Bb2 {[%clk 0:02:33]}  a6 {[%clk 0:02:25]} 16. Na3 {[%clk 0:02:29]}  b5 {[%clk 0:02:21]} 17. Bc3 {[%clk 0:02:07]}  Qc7 {[%clk 0:02:15]} 18. Bb4 {[%clk 0:02:02]}  Rfd8 {[%clk 0:02:15]} 19. c4 {[%clk 0:02:00]}  dxc4 {[%clk 0:02:10]} 20. Bxb7 {[%clk 0:01:46]}  Qxb7 {[%clk 0:02:09]} 21. bxc4 {[%clk 0:01:43]}  Rxd1+ {[%clk 0:02:01]} 22. Rxd1 {[%clk 0:01:42]}  a5 {[%clk 0:02:02]} 23. Bd6 {[%clk 0:01:37]}  b4 {[%clk 0:02:01]} 24. Nb5 {[%clk 0:01:37]}  Ne4 {[%clk 0:02:00]} 25. h4 {[%clk 0:01:24]}  Rc8 {[%clk 0:01:57]} 26. a3 {[%clk 0:00:55]}  b3 {[%clk 0:01:55]} 27. a4 {[%clk 0:00:55]}  Qc6 {[%clk 0:01:47]} 28. c5 {[%clk 0:00:26]}  Bf8 {[%clk 0:00:57]} 29. Na7 {[%clk 0:00:21]}  Nc3 {[%clk 0:00:44]} 30. Qd3 {[%clk 0:00:18]}  Qf3 {[%clk 0:00:40]} 31. Re1 {[%clk 0:00:11]}  Ne4 {[%clk 0:00:40]} 32. Re2 {[%clk 0:00:06]}  Nxc5 {[%clk 0:00:35]} 33. Bxc5 {[%clk 0:00:05]}  Rxc5 {[%clk 0:00:36]} 34. Re1 {[%clk 0:00:03]}  b2 {[%clk 0:00:36]} 35. Qb1 {[%clk 0:00:01]}  Rc4 {[%clk 0:00:10]} 36. Nb5 {[%clk 0:00:02]}  Rb4 {[%clk 0:00:07]} 37. Qc2 {[%clk 0:00:02]}  Qd5 {[%clk 0:00:04]} 38. Qb1 {[%clk 0:00:03]}  Qb3 {[%clk 0:00:03]} 39. Rd1 {[%clk 0:00:02]}  Qxa4 {[%clk 0:00:03]} 40. Nc7 {[%clk 0:00:03]}  Qc6 {[%clk 0:00:03]} 41. Nd5 {[%clk 0:00:03]}  Rb3 {[%clk 0:00:03]} 42. Nf6+ {[%clk 0:00:03]}  Qxf6 {[%clk 0:00:03]} 43. Qc2 {[%clk 0:00:03]}  Qb6 {[%clk 0:00:04]} 44. Rb1 {[%clk 0:00:03]}  a4 {[%clk 0:00:04]} 45. Qc4 {[%clk 0:00:03]}  a3 {[%clk 0:00:05]} 46. Qa4 {[%clk 0:00:04]}  Qb5 {[%clk 0:00:04]} 47. Qa8 {[%clk 0:00:03]}  Rc3 {[%clk 0:00:04]} 48. Kg2 {[%clk 0:00:03]}  Rc1 {[%clk 0:00:04]} 49. Ra1 {[%clk 0:00:02]}  Rxa1 {[%clk 0:00:04]} 50. Qxf8+ {[%clk 0:00:03]}  Kxf8 {[%clk 0:00:04]} 0-1


[Site "https://www.chess.com"]

[Event "Titled Tuesday Blitz September 20 Late 2022"]
[White "Martinez Alcantara, Jose Eduardo"]
[Black "Averjanov, Alexey"]
[WhiteFideId "3805662"]
[BlackFideId "14109867"]
[WhiteElo "2703"]
[BlackElo "2654"]
[Result "1-0"]
[Round "02"]
[TimeControl "180+1"]
[Date "2022.09.20"]
[WhiteClock "0:00:43"]
[BlackClock "0:00:25"]

1. e4 {[%clk 0:03:00]}  c6 {[%clk 0:03:00]} 2. Nf3 {[%clk 0:03:01]}  d5 {[%clk 0:03:00]} 3. d3 {[%clk 0:03:02]}  Qc7 {[%clk 0:03:00]} 4. exd5 {[%clk 0:03:01]}  cxd5 {[%clk 0:03:00]} 5. c4 {[%clk 0:03:02]}  Nf6 {[%clk 0:03:00]} 6. Nc3 {[%clk 0:03:02]}  dxc4 {[%clk 0:02:58]} 7. dxc4 {[%clk 0:03:03]}  a6 {[%clk 0:02:55]} 8. Be2 {[%clk 0:02:45]}  Bf5 {[%clk 0:02:51]} 9. O-O {[%clk 0:02:38]}  e6 {[%clk 0:02:51]} 10. Nh4 {[%clk 0:02:32]}  Bg6 {[%clk 0:02:50]} 11. h3 {[%clk 0:02:28]}  Nc6 {[%clk 0:02:47]} 12. Be3 {[%clk 0:02:27]}  Be7 {[%clk 0:02:46]} 13. Nxg6 {[%clk 0:02:27]}  hxg6 {[%clk 0:02:46]} 14. a3 {[%clk 0:02:27]}  O-O {[%clk 0:02:42]} 15. Qa4 {[%clk 0:02:24]}  Rfd8 {[%clk 0:02:35]} 16. Rad1 {[%clk 0:02:23]}  Rxd1 {[%clk 0:02:27]} 17. Rxd1 {[%clk 0:02:24]}  Rd8 {[%clk 0:02:27]} 18. b4 {[%clk 0:02:23]}  Rxd1+ {[%clk 0:02:26]} 19. Qxd1 {[%clk 0:02:24]}  Ne5 {[%clk 0:02:26]} 20. c5 {[%clk 0:02:23]}  Nc6 {[%clk 0:02:24]} 21. Bf3 {[%clk 0:02:15]}  Qd7 {[%clk 0:02:21]} 22. Qxd7 {[%clk 0:02:00]}  Nxd7 {[%clk 0:02:22]} 23. Ne4 {[%clk 0:01:54]}  Nde5 {[%clk 0:02:19]} 24. Be2 {[%clk 0:01:53]}  Kf8 {[%clk 0:02:14]} 25. f4 {[%clk 0:01:51]}  Nd7 {[%clk 0:02:14]} 26. Kf2 {[%clk 0:01:51]}  Nf6 {[%clk 0:02:14]} 27. Kf3 {[%clk 0:01:48]}  Nxe4 {[%clk 0:02:11]} 28. Kxe4 {[%clk 0:01:49]}  Ke8 {[%clk 0:02:10]} 29. Kd3 {[%clk 0:01:44]}  Bf6 {[%clk 0:02:10]} 30. Kc4 {[%clk 0:01:42]}  Kd7 {[%clk 0:02:07]} 31. a4 {[%clk 0:01:41]}  e5 {[%clk 0:02:04]} 32. b5 {[%clk 0:01:32]}  axb5+ {[%clk 0:02:05]} 33. axb5 {[%clk 0:01:32]}  Nd8 {[%clk 0:02:01]} 34. Bg4+ {[%clk 0:01:26]}  Kc7 {[%clk 0:02:00]} 35. Kd5 {[%clk 0:01:22]}  Bh4 {[%clk 0:01:06]} 36. fxe5 {[%clk 0:01:05]}  Bg3 {[%clk 0:01:05]} 37. e6 {[%clk 0:01:03]}  fxe6+ {[%clk 0:00:59]} 38. Bxe6 {[%clk 0:01:03]}  Bh2 {[%clk 0:00:48]} 39. Bd4 {[%clk 0:00:59]}  Bf4 {[%clk 0:00:41]} 40. b6+ {[%clk 0:00:55]}  Kb8 {[%clk 0:00:40]} 41. Bxg7 {[%clk 0:00:53]}  Be3 {[%clk 0:00:40]} 42. Be5+ {[%clk 0:00:52]}  Ka8 {[%clk 0:00:40]} 43. Bd7 {[%clk 0:00:52]}  g5 {[%clk 0:00:38]} 44. Be8 {[%clk 0:00:47]}  Bf2 {[%clk 0:00:29]} 45. Bf6 {[%clk 0:00:42]}  Nc6 {[%clk 0:00:26]} 46. Bxc6 {[%clk 0:00:42]}  bxc6+ {[%clk 0:00:27]} 47. Kxc6 {[%clk 0:00:42]}  Be3 {[%clk 0:00:26]} 48. Be5 {[%clk 0:00:42]}  g4 {[%clk 0:00:24]} 49. b7+ {[%clk 0:00:42]}  Ka7 {[%clk 0:00:24]} 50. b8=Q+ {[%clk 0:00:43]}  Ka6 {[%clk 0:00:25]} 51. Qb6# {[%clk 0:00:43]} 1-0


[Site "https://www.chess.com"]

[Event "Titled Tuesday Blitz September 20 Late 2022"]
[White "Mladek, Richard"]
[Black "Nakamura, Hikaru"]
[WhiteFideId "386588"]
[BlackFideId "2016192"]
[WhiteElo "2666"]
[BlackElo "3246"]
[Result "0-1"]
[Round "02"]
[TimeControl "180+1"]
[Date "2022.09.20"]
[WhiteClock "0:00:09"]
[BlackClock "0:01:41"]

1. d4 {[%clk 0:03:00]}  f5 {[%clk 0:02:59]} 2. Nf3 {[%clk 0:03:00]}  g6 {[%clk 0:02:58]} 3. g3 {[%clk 0:03:00]}  Bg7 {[%clk 0:02:58]} 4. Bg2 {[%clk 0:03:01]}  d6 {[%clk 0:02:58]} 5. O-O {[%clk 0:03:02]}  Nh6 {[%clk 0:02:57]} 6. c4 {[%clk 0:03:02]}  Nf7 {[%clk 0:02:57]} 7. Nc3 {[%clk 0:03:02]}  e5 {[%clk 0:02:54]} 8. e4 {[%clk 0:02:45]}  f4 {[%clk 0:02:40]} 9. dxe5 {[%clk 0:02:36]}  fxg3 {[%clk 0:02:40]} 10. fxg3 {[%clk 0:02:18]}  dxe5 {[%clk 0:02:31]} 11. Qxd8+ {[%clk 0:02:09]}  Nxd8 {[%clk 0:02:31]} 12. Nd5 {[%clk 0:02:04]}  Na6 {[%clk 0:02:21]} 13. Bg5 {[%clk 0:02:03]}  Nf7 {[%clk 0:02:18]} 14. Bf6 {[%clk 0:01:56]}  O-O {[%clk 0:01:58]} 15. Ne7+ {[%clk 0:01:11]}  Kh8 {[%clk 0:01:58]} 16. Nxe5 {[%clk 0:00:35]}  Nxe5 {[%clk 0:01:59]} 17. Bxe5 {[%clk 0:00:35]}  Rxf1+ {[%clk 0:01:59]} 18. Rxf1 {[%clk 0:00:35]}  Bxe5 {[%clk 0:02:00]} 19. Rf8+ {[%clk 0:00:35]}  Kg7 {[%clk 0:02:01]} 20. Rxc8 {[%clk 0:00:35]}  Rxc8 {[%clk 0:02:02]} 21. Nxc8 {[%clk 0:00:36]}  Bxb2 {[%clk 0:02:03]} 22. e5 {[%clk 0:00:36]}  Nc5 {[%clk 0:02:00]} 23. e6 {[%clk 0:00:34]}  c6 {[%clk 0:01:52]} 24. Nd6 {[%clk 0:00:21]}  Kf8 {[%clk 0:01:45]} 25. Kf2 {[%clk 0:00:16]}  Be5 {[%clk 0:01:43]} 26. Nc8 {[%clk 0:00:11]}  Nxe6 {[%clk 0:01:41]} 27. Nxa7 {[%clk 0:00:09]}  Bd4+ {[%clk 0:01:41]} 0-1


[Site "https://www.chess.com"]

[Event "Titled Tuesday Blitz September 20 Late 2022"]
[White "Naroditsky, Daniel"]
[Black "Sargsyan, Anna M."]
[WhiteFideId "2026961"]
[BlackFideId "13308130"]
[WhiteElo "2628"]
[BlackElo "2271"]
[Result "1-0"]
[Round "02"]
[TimeControl "180+1"]
[Date "2022.09.20"]
[WhiteClock "0:00:31"]
[BlackClock "0:00:03"]

1. e4 {[%clk 0:02:46]}  c6 {[%clk 0:02:59]} 2. d4 {[%clk 0:02:42]}  d5 {[%clk 0:03:00]} 3. f3 {[%clk 0:02:43]}  dxe4 {[%clk 0:03:00]} 4. fxe4 {[%clk 0:02:43]}  e5 {[%clk 0:03:01]} 5. Nf3 {[%clk 0:02:43]}  Bg4 {[%clk 0:03:01]} 6. c3 {[%clk 0:02:33]}  Nf6 {[%clk 0:02:58]} 7. Be2 {[%clk 0:02:30]}  Nbd7 {[%clk 0:02:56]} 8. O-O {[%clk 0:02:28]}  Bd6 {[%clk 0:02:53]} 9. Nbd2 {[%clk 0:02:26]}  O-O {[%clk 0:02:52]} 10. Nc4 {[%clk 0:02:25]}  Bc7 {[%clk 0:02:02]} 11. Nfxe5 {[%clk 0:02:20]}  Bxe2 {[%clk 0:01:54]} 12. Qxe2 {[%clk 0:02:21]}  Nxe5 {[%clk 0:01:53]} 13. dxe5 {[%clk 0:02:15]}  Nd7 {[%clk 0:01:52]} 14. Bf4 {[%clk 0:01:58]}  b5 {[%clk 0:00:57]} 15. Nd6 {[%clk 0:01:49]}  Nxe5 {[%clk 0:00:57]} 16. Bxe5 {[%clk 0:01:49]}  Bxd6 {[%clk 0:00:58]} 17. Rad1 {[%clk 0:01:38]}  Bc5+ {[%clk 0:00:55]} 18. Kh1 {[%clk 0:01:38]}  Qe7 {[%clk 0:00:55]} 19. Rf5 {[%clk 0:01:29]}  Rad8 {[%clk 0:00:43]} 20. Rdf1 {[%clk 0:01:27]}  f6 {[%clk 0:00:44]} 21. Bg3 {[%clk 0:01:24]}  Rfe8 {[%clk 0:00:40]} 22. e5 {[%clk 0:01:25]}  Rd5 {[%clk 0:00:37]} 23. c4 {[%clk 0:01:18]}  bxc4 {[%clk 0:00:31]} 24. Qxc4 {[%clk 0:01:19]}  fxe5 {[%clk 0:00:10]} 25. Rxe5 {[%clk 0:01:08]}  Qd7 {[%clk 0:00:10]} 26. Rxe8+ {[%clk 0:01:05]}  Qxe8 {[%clk 0:00:11]} 27. h3 {[%clk 0:01:05]}  h6 {[%clk 0:00:10]} 28. b4 {[%clk 0:01:04]}  Bb6 {[%clk 0:00:08]} 29. a4 {[%clk 0:01:02]}  Kh7 {[%clk 0:00:07]} 30. b5 {[%clk 0:01:02]}  Rc5 {[%clk 0:00:06]} 31. Qd3+ {[%clk 0:01:02]}  Qg6 {[%clk 0:00:06]} 32. Qxg6+ {[%clk 0:00:56]}  Kxg6 {[%clk 0:00:06]} 33. bxc6 {[%clk 0:00:56]}  Rxc6 {[%clk 0:00:07]} 34. Ra1 {[%clk 0:00:47]}  Bd4 {[%clk 0:00:07]} 35. Rd1 {[%clk 0:00:47]}  Bf6 {[%clk 0:00:07]} 36. Rd5 {[%clk 0:00:46]}  a6 {[%clk 0:00:07]} 37. Kh2 {[%clk 0:00:45]}  Bc3 {[%clk 0:00:06]} 38. h4 {[%clk 0:00:44]}  a5 {[%clk 0:00:06]} 39. Kh3 {[%clk 0:00:44]}  Kh7 {[%clk 0:00:07]} 40. h5 {[%clk 0:00:44]}  Rc4 {[%clk 0:00:07]} 41. Rd3 {[%clk 0:00:42]}  Bf6 {[%clk 0:00:07]} 42. Ra3 {[%clk 0:00:42]}  Rb4 {[%clk 0:00:07]} 43. Be1 {[%clk 0:00:38]}  Rb7 {[%clk 0:00:05]} 44. Bxa5 {[%clk 0:00:37]}  Ra7 {[%clk 0:00:05]} 45. Bb6 {[%clk 0:00:30]}  Ra6 {[%clk 0:00:02]} 46. a5 {[%clk 0:00:30]}  g6 {[%clk 0:00:02]} 47. hxg6+ {[%clk 0:00:29]}  Kxg6 {[%clk 0:00:03]} 48. Kg4 {[%clk 0:00:30]}  h5+ {[%clk 0:00:03]} 49. Kf4 {[%clk 0:00:30]}  Be7 {[%clk 0:00:03]} 50. Ra4 {[%clk 0:00:28]}  Bd6+ {[%clk 0:00:03]} 51. Ke4 {[%clk 0:00:28]}  Be7 {[%clk 0:00:03]} 52. Kd5 {[%clk 0:00:28]}  h4 {[%clk 0:00:02]} 53. Kc6 {[%clk 0:00:28]}  Ra8 {[%clk 0:00:02]} 54. Kb7 {[%clk 0:00:29]}  Re8 {[%clk 0:00:02]} 55. a6 {[%clk 0:00:30]}  Bf6 {[%clk 0:00:03]} 56. a7 {[%clk 0:00:30]}  Re7+ {[%clk 0:00:03]} 57. Bc7 {[%clk 0:00:31]}  Be5 {[%clk 0:00:03]} 58. Rc4 {[%clk 0:00:30]}  Bxc7 {[%clk 0:00:03]} 59. Rxc7 {[%clk 0:00:31]}  Rxc7+ {[%clk 0:00:03]} 1-0


[Site "https://www.chess.com"]

[Event "Titled Tuesday Blitz September 20 Late 2022"]
[White "Shimanov, Aleksandr"]
[Black "Suder, Jakub"]
[WhiteFideId "4198603"]
[BlackFideId "1195310"]
[WhiteElo "2605"]
[BlackElo "2174"]
[Result "1-0"]
[Round "02"]
[TimeControl "180+1"]
[Date "2022.09.20"]
[WhiteClock "0:02:15"]
[BlackClock "0:01:45"]

1. e4 {[%clk 0:03:00]}  c5 {[%clk 0:02:57]} 2. Nf3 {[%clk 0:03:00]}  e6 {[%clk 0:02:57]} 3. g3 {[%clk 0:03:00]}  Nc6 {[%clk 0:02:57]} 4. Bg2 {[%clk 0:03:00]}  Nf6 {[%clk 0:02:57]} 5. d3 {[%clk 0:02:59]}  d5 {[%clk 0:02:56]} 6. Qe2 {[%clk 0:02:58]}  Be7 {[%clk 0:02:56]} 7. e5 {[%clk 0:02:59]}  Nd7 {[%clk 0:02:56]} 8. c4 {[%clk 0:02:58]}  dxc4 {[%clk 0:02:43]} 9. dxc4 {[%clk 0:02:58]}  Qc7 {[%clk 0:02:43]} 10. Bf4 {[%clk 0:02:55]}  h6 {[%clk 0:02:43]} 11. h4 {[%clk 0:02:54]}  Nf8 {[%clk 0:02:42]} 12. g4 {[%clk 0:02:39]}  Ng6 {[%clk 0:02:36]} 13. Bg3 {[%clk 0:02:39]}  h5 {[%clk 0:02:34]} 14. g5 {[%clk 0:02:32]}  Nd4 {[%clk 0:02:23]} 15. Nxd4 {[%clk 0:02:31]}  cxd4 {[%clk 0:02:23]} 16. Nd2 {[%clk 0:02:31]}  Bb4 {[%clk 0:02:20]} 17. O-O {[%clk 0:02:30]}  Bxd2 {[%clk 0:02:15]} 18. Qxd2 {[%clk 0:02:29]}  Ne7 {[%clk 0:02:12]} 19. Qxd4 {[%clk 0:02:27]}  Nf5 {[%clk 0:02:11]} 20. Qf4 {[%clk 0:02:25]}  g6 {[%clk 0:02:09]} 21. Rfd1 {[%clk 0:02:21]}  Bd7 {[%clk 0:02:07]} 22. Rd6 {[%clk 0:02:18]}  Bc6 {[%clk 0:02:03]} 23. Bh3 {[%clk 0:02:15]}  Nxd6 {[%clk 0:01:59]} 24. exd6 {[%clk 0:02:15]}  Qd7 {[%clk 0:01:52]} 25. Qf6 {[%clk 0:02:15]}  Rf8 {[%clk 0:01:45]} 26. Re1 {[%clk 0:02:15]} 1-0


[Site "https://www.chess.com"]